[Event "ESTCC U65 2018"]
[Site "Walbrzych"]
[Date "2018.04.17"]
[Round "4"]
[White "Sorensen, Bent"]
[Black "Buchal, Stephan"]
[Result "0-1"]
[ECO "A04"]
[WhiteElo "2158"]
[BlackElo "2310"]
[Annotator "NA"]
[PlyCount "46"]
[EventDate "2018.??.??"]
[EventCountry "POL"]
[SourceTitle "playchess.com"]
[Source "ChessBase"]
[SourceQuality "1"]
[WhiteTeam "Denmark"]
[BlackTeam "Germany"]
[WhiteTeamCountry "DEN"]
[BlackTeamCountry "GER"]
[TimeControl "40/5400+30:1800+30"]

1. Nf3 {[%emt 0:00:00]} g6 {[%emt 0:00:14]} 2. d4 {[%emt 0:00:00]} Bg7 {[%emt 0:00:14]} 3. e3 {[%emt 0:00:57]} Nf6 {[%emt 0:01:47]} 4. b3 {[%emt 0:01:19]} c5 {[%emt 0:02:38] LiveBook: 65 Games} 5. Bd3 {[%emt 0:02:12]} O-O {[%emt 0:00:41]} 6. O-O {[%emt 0:00:33]} cxd4 {[%emt 0:05:05] A48: 1 d4 Nf6 2 Nf3 g6: Torre, London and Colle Systems} (6... b6 7. Bb2 Bb7 8. c4 cxd4 9. exd4 d5 10. Re1 Nc6 11. Nbd2 dxc4 12. bxc4 Nh5 13. Be4 Qc7 14. Qc1 Nb4 15. d5 Nf6 {½-½ (65) Stefanova,A (2518)-Danielian,E (2484) Kazan 2012}) 7. exd4 {[%emt 0:03:24]} Nc6 {[%emt 0:01:03]} 8. c3 {[%emt 0:01:09]} d6 {[%emt 0:04:30]} 9. Nbd2 {[%emt 0:05:16]} e5 {[%emt 0:02:56]} 10. Ba3 $146 {[%emt 0:08:06]} ({Predecessor:} 10. dxe5 dxe5 11. Ne4 Bf5 12. Qe2 Bxe4 13. Bxe4 Nxe4 14. Qxe4 Qd7 15. Bb2 Rad8 {0-1 (30) Kende,G (2168)-Szalanczy,E (2380) Balatonlelle 2004}) 10... Re8 {[%emt 0:10:29]} 11. Re1 {[%emt 0:04:52]} Bg4 {[%emt 0:09:08]} 12. dxe5 {[%emt 0:05:09]} Nxe5 {[%emt 0:17:16]} 13. Be2 {[%emt 0:02:10]} Nd5 {[%emt 0:03:15]} 14. Qc2 $2 {[%emt 0:25:25]} (14. Ne4 $15 Nf4 15. Nd4) 14... Nxc3 {[%emt 0:03:38]} 15. Bf1 {[%emt 0:04:29]} Rc8 {[%emt 0:03:11]} 16. Bc4 {[%emt 0:01:47]} Bxf3 {[%emt 0:08:48]} 17. gxf3 {[%emt 0:01:33]} b5 {[%emt 0:05:08]} 18. Qxc3 {[%emt 0:02:20]} Nxc4 {[%emt 0:01:02]} 19. Qd3 {[%emt 0:02:23]} Qg5+ {[%emt 0:01:28]} 20. Kh1 {[%emt 0:00:26]} Bxa1 $19 {[%emt 0:00:54]} 21. Ne4 {[%emt 0:00:52]} Rxe4 {[%emt 0:00:54]} 22. fxe4 {[%emt 0:00:12]} Nxa3 {[%emt 0:00:47]} 23. Rxa1 {[%emt 0:00:13]} Rc1+ {[%emt 0:00:22]} 0-1

[Event "ESTCC U65 2018"]
[Site "Walbrzych"]
[Date "2018.04.17"]
[Round "4"]
[White "Malmdin, Nils-Ake"]
[Black "Hohler, Peter"]
[Result "1-0"]
[ECO "A06"]
[WhiteElo "2154"]
[BlackElo "2076"]
[Annotator "NA"]
[PlyCount "97"]
[EventDate "2018.??.??"]
[EventCountry "POL"]
[SourceTitle "playchess.com"]
[Source "ChessBase"]
[SourceQuality "1"]
[WhiteTeam "Sweden"]
[BlackTeam "Switzerland"]
[WhiteTeamCountry "SWE"]
[BlackTeamCountry "SUI"]
[TimeControl "40/5400+30:1800+30"]

1. Nf3 {[%emt 0:00:00]} d5 {[%emt 0:00:39]} 2. g3 {[%emt 0:00:00]} Nf6 {[%emt 0:00:24]} 3. Bg2 {[%emt 0:00:06]} Bf5 {[%emt 0:01:41]} 4. O-O {[%emt 0:02:07]} e6 {[%emt 0:00:34]} 5. b3 {[%emt 0:01:13]} Be7 {[%emt 0:00:50]} 6. Bb2 {[%emt 0:00:14]} h6 {[%emt 0:00:43]} 7. d3 {[%emt 0:00:14]} O-O {[%emt 0:00:55] LiveBook: 121 Games} 8. Nbd2 {[%emt 0:00:15]} c5 {[%emt 0:01:16]} 9. Ne5 {[%emt 0:12:33]} Bh7 {[%emt 0:11:37] A07: Réti Opening: New York and Capablanca Systems} 10. e4 {[%emt 0:07:57]} (10. c4 Nbd7 11. cxd5 Nxe5 12. Bxe5 Nxd5 13. Qc2 Rc8 14. Rfc1 Qd7 15. Qd1 f6 16. Bb2 e5 17. Qf1 {1-0 (56) Kharlov,A (2557)-Dreev,A (2655) Fuegen 2006}) 10... Nbd7 {[%emt 0:09:27]} 11. Nxd7 {[%emt 0:16:21]} Qxd7 {[%emt 0:00:10]} 12. e5 {[%emt 0:00:18]} Ne8 {[%emt 0:00:10]} 13. Qe2 {[%emt 0:00:25]} Nc7 {[%emt 0:03:39]} 14. f4 {[%emt 0:09:31]} Rab8 {[%emt 0:10:21]} 15. g4 $146 {[%emt 0:06:46]} ({Find the theoretical novelty and annotate with similar games:} 15. c4 b5 16. Rad1 a5 17. Nf3 {½-½ (44) Gagic,M (1807)-Molcanov,S (2010) Paracin 2015}) 15... d4 {[%emt 0:07:01]} 16. Ne4 {[%emt 0:05:16]} Nd5 {[%emt 0:04:34]} 17. Bc1 {[%emt 0:02:26]} b5 {[%emt 0:06:36]} 18. Bd2 $11 {[%emt 0:05:01]} Qc7 {[%emt 0:14:45]} 19. Ng3 {[%emt 0:08:46]} Rfd8 {[%emt 0:03:10]} 20. Qe1 {[%emt 0:09:13]} Qc8 {[%emt 0:02:46]} 21. Be4 {[%emt 0:02:30]} Bxe4 {[%emt 0:05:18]} 22. Nxe4 {[%emt 0:00:47]} Rf8 {[%emt 0:04:03]} 23. g5 {[%emt 0:02:02]} h5 {[%emt 0:01:42]} 24. Qh4 {[%emt 0:01:52]} g6 {[%emt 0:00:58]} 25. Nf6+ {[%emt 0:00:21]} Bxf6 {[%emt 0:01:40]} 26. gxf6 {[%emt 0:00:15]} Ne3 {[%emt 0:01:07]} 27. Bxe3 {[%emt 0:00:30]} dxe3 28. Qg5 {[%emt 0:00:14]} Kh7 {[%emt 0:00:17]} 29. Rf3 {[%emt 0:00:02]} Rh8 {[%emt 0:01:03]} 30. Rxe3 {[%emt 0:00:32]} c4 {[%emt 0:00:39]} 31. Qg2 {[%emt 0:02:37]} Qc5 {[%emt 0:00:53]} 32. Qf2 {[%emt 0:00:32]} Qd4 {[%emt 0:01:18]} 33. Rae1 {[%emt 0:00:57]} Rbc8 {[%emt 0:00:53]} 34. dxc4 {[%emt 0:00:35]} bxc4 {[%emt 0:00:15]} 35. c3 {[%emt 0:00:19]} Qb6 {[%emt 0:00:36]} 36. b4 {[%emt 0:00:33]} Rcd8 {[%emt 0:02:38]} 37. Re4 {[%emt 0:00:45]} Qc7 {[%emt 0:01:08]} 38. Qc5 {[%emt 0:02:00]} Qxc5+ {[%emt 0:01:20]} 39. bxc5 {[%emt 0:00:02]} Rd5 {[%emt 0:01:44]} 40. Rxc4 {[%emt 0:00:00]} Rd2 {[%emt 0:00:19]} 41. c6 {[%emt 0:00:47]} Rb8 {[%emt 0:00:33]} 42. Rb4 {[%emt 0:00:35]} Rc8 {[%emt 0:00:54]} 43. Rb7 {[%emt 0:02:15]} Rxc6 {[%emt 0:03:34]} 44. Rxf7+ {[%emt 0:03:19]} Kh6 {[%emt 0:00:00]} 45. Rf8 {[%emt 0:01:37]} Kh7 {[%emt 0:01:54]} 46. Rb1 {[%emt 0:00:28]} Rb6 {[%emt 0:00:16]} 47. Rxb6 {[%emt 0:00:30]} axb6 {[%emt 0:00:01]} 48. Rb8 {[%emt 0:00:16]} Rxa2 {[%emt 0:00:24]} 49. f7 1-0

[Event "ESTCC U65 2018"]
[Site "Walbrzych"]
[Date "2018.04.17"]
[Round "4"]
[White "Holst, Per"]
[Black "Kierzek, Matthias"]
[Result "1/2-1/2"]
[ECO "A21"]
[WhiteElo "2140"]
[BlackElo "2272"]
[Annotator "NA"]
[PlyCount "70"]
[EventDate "2018.??.??"]
[EventCountry "POL"]
[SourceTitle "playchess.com"]
[Source "ChessBase"]
[SourceQuality "1"]
[WhiteTeam "Denmark"]
[BlackTeam "Germany"]
[WhiteTeamCountry "DEN"]
[BlackTeamCountry "GER"]
[TimeControl "40/5400+30:1800+30"]

1. c4 {[%emt 0:00:00]} e5 {[%emt 0:00:13]} 2. Nc3 {[%emt 0:00:05]} Bb4 {[%emt 0:00:05]} 3. Nd5 {[%emt 0:02:22]} Bc5 {[%emt 0:00:07]} 4. e3 {[%emt 0:02:15]} c6 {[%emt 0:00:33]} 5. Nc3 {[%emt 0:00:09]} d5 {[%emt 0:06:07]} 6. d4 {[%emt 0:01:12]} exd4 {[%emt 0:02:06] LiveBook: 3 Games} 7. exd4 {[%emt 0:00:11]} Be7 {[%emt 0:02:40]} 8. Nf3 {[%emt 0:04:35]} Nf6 {[%emt 0:00:58]} 9. cxd5 {[%emt 0:01:36]} cxd5 {[%emt 0:08:23]} 10. Be2 {[%emt 0:04:14]} O-O {[%emt 0:00:18]} 11. O-O {[%emt 0:00:46]} Nc6 {[%emt 0:02:38]} 12. Ne5 {[%emt 0:06:25] B14: Caro-Kann: Panov-Botvinnik Attack with 5...e6 and 5...g6} (12. Bf4 Ne4 13. Rc1 Nxc3 14. Rxc3 Bb4 15. Rc1 Bd6 16. Bxd6 Qxd6 17. Re1 Qb4 {½-½ (15) Lalith,B (2594)-Negi,P (2640) Sharjah 2014}) 12... Bf5 {[%emt 0:07:38]} 13. Be3 {[%emt 0:05:19]} Rc8 {[%emt 0:07:50]} 14. Rc1 {[%emt 0:18:16]} Na5 $146 {[%emt 0:08:26]} ({Predecessor:} 14... Qa5 15. Qb3 Bd6 16. Nb5 Nxe5 17. Nxd6 Rxc1 18. Rxc1 {1-0 (16) Darnstaedt,F (2345)-Winter,K Leipzig 1994}) 15. Qa4 {[%emt 0:07:02]} Qb6 {[%emt 0:05:48]} 16. Qb5 {[%emt 0:04:31]} Qxb5 {[%emt 0:07:21]} 17. Nxb5 {[%emt 0:00:15]} a6 {[%emt 0:01:18]} 18. Nc3 {[%emt 0:02:39]} b5 {[%emt 0:03:52]} 19. g4 {[%emt 0:02:13]} Be6 {[%emt 0:00:22]} 20. f4 {[%emt 0:07:30]} Nc4 {[%emt 0:01:03]} 21. Nxc4 {[%emt 0:00:45]} dxc4 {[%emt 0:00:45]} 22. f5 {[%emt 0:01:22]} Nd5 {[%emt 0:06:54]} 23. Bd2 {[%emt 0:00:53]} Nxc3 $11 {[%emt 0:00:28]} 24. bxc3 {[%emt 0:00:31]} Bd5 {[%emt 0:00:16]} 25. Bd1 {[%emt 0:07:09]} Ba3 {[%emt 0:02:50]} 26. Ra1 {[%emt 0:01:28]} b4 {[%emt 0:04:24]} 27. Bf3 {[%emt 0:01:28]} Bxf3 {[%emt 0:05:45]} 28. Rxf3 {[%emt 0:00:02]} a5 {[%emt 0:00:09]} 29. Bc1 {[%emt 0:05:43]} Bxc1 {[%emt 0:00:13]} 30. Rxc1 {[%emt 0:00:01]} Rfd8 {[%emt 0:03:36]} 31. h3 {[%emt 0:04:39]} bxc3 {[%emt 0:02:24]} 32. Rf4 {[%emt 0:00:34]} Rb8 {[%emt 0:01:51]} 33. Rxc3 {[%emt 0:01:00]} Rb1+ {[%emt 0:01:00]} 34. Kg2 {[%emt 0:01:52]} Rb2+ {[%emt 0:00:12]} 35. Kg3 {[%emt 0:00:09]} Rxa2 {[%emt 0:00:23]} 1/2-1/2

[Event "ESTCC U65 2018"]
[Site "Walbrzych"]
[Date "2018.04.17"]
[Round "4"]
[White "Kradolfer, Georg"]
[Black "Hammar, Bengt"]
[Result "0-1"]
[ECO "A22"]
[WhiteElo "2084"]
[BlackElo "2133"]
[Annotator "NA"]
[PlyCount "68"]
[EventDate "2018.??.??"]
[EventCountry "POL"]
[SourceTitle "playchess.com"]
[Source "ChessBase"]
[SourceQuality "1"]
[WhiteTeam "SUI"]
[BlackTeam "SWE"]
[WhiteTeamCountry "SUI"]
[BlackTeamCountry "SWE"]
[TimeControl "40/5400+30:1800+30"]

1. c4 {[%emt 0:00:00]} e5 {[%emt 0:01:56]} 2. Nc3 {[%emt 0:00:09]} Nf6 {[%emt 0:00:24]} 3. g3 {[%emt 0:00:28]} d5 {[%emt 0:00:40]} 4. cxd5 {[%emt 0:00:27]} Nxd5 {[%emt 0:00:08]} 5. Bg2 {[%emt 0:00:10]} Nb6 {[%emt 0:00:21]} 6. Nf3 {[%emt 0:02:25]} Nc6 {[%emt 0:00:22]} 7. d3 {[%emt 0:03:42]} Be7 {[%emt 0:03:43] LiveBook: 520 Games} 8. O-O {[%emt 0:03:59]} O-O {[%emt 0:00:58]} 9. b3 {[%emt 0:04:47]} Be6 {[%emt 0:05:25]} 10. Bb2 {[%emt 0:00:56]} f5 {[%emt 0:01:21]} 11. Rc1 {[%emt 0:06:53]} Bf6 {[%emt 0:02:27]} 12. Ba3 {[%emt 0:08:21]} Rf7 {[%emt 0:01:35]} 13. e3 {[%emt 0:01:20]} Rd7 {[%emt 0:06:01]} 14. Ne1 {[%emt 0:03:00]} e4 {[%emt 0:03:26]} 15. d4 {[%emt 0:14:34]} Ne7 $16 {[%emt 0:05:47]} (15... g6 $11) 16. Qe2 {[%emt 0:12:25]} Ned5 {[%emt 0:05:23]} 17. Nxd5 {[%emt 0:06:57]} Nxd5 {[%emt 0:00:33]} 18. f3 {[%emt 0:02:14]} Nxe3 {[%emt 0:01:47]} 19. Rf2 {[%emt 0:11:45]} Nxg2 {[%emt 0:04:59]} 20. Nxg2 {[%emt 0:03:20]} Bxd4 {[%emt 0:01:30]} 21. Ne3 {[%emt 0:00:06]} Qg5 {[%emt 0:13:38]} 22. f4 {[%emt 0:05:33]} Qf6 {[%emt 0:00:14]} 23. Kg2 {[%emt 0:00:26]} Rad8 {[%emt 0:01:54]} 24. Rc2 {[%emt 0:00:48]} h6 {[%emt 0:01:37]} 25. Bb2 {[%emt 0:01:19]} Bxb2 {[%emt 0:00:39]} 26. Rxb2 {[%emt 0:00:04]} Rd3 {[%emt 0:00:47]} 27. Rc2 {[%emt 0:00:46]} Qd4 {[%emt 0:01:31]} 28. Nc4 {[%emt 0:03:40]} Bxc4 {[%emt 0:00:26]} 29. Rxc4 {[%emt 0:00:01]} Qd5 {[%emt 0:00:12]} 30. Kh3 {[%emt 0:01:35]} c6 {[%emt 0:02:19]} 31. Rc2 {[%emt 0:01:11]} e3 {[%emt 0:02:57]} 32. Rf3 {[%emt 0:01:12]} Rd2 {[%emt 0:00:27]} 33. Rxd2 {[%emt 0:01:03]} exd2 {[%emt 0:00:10]} 34. Qd1 {[%emt 0:00:20]} Qxf3 0-1

[Event "ESTCC U65 2018"]
[Site "Walbrzych"]
[Date "2018.04.17"]
[Round "4"]
[White "Scrimgour, Alan"]
[Black "Tunik, Gennady"]
[Result "1/2-1/2"]
[ECO "B22"]
[WhiteElo "2083"]
[BlackElo "2351"]
[Annotator "NA"]
[PlyCount "37"]
[EventDate "2018.??.??"]
[EventCountry "POL"]
[SourceTitle "playchess.com"]
[Source "ChessBase"]
[SourceQuality "1"]
[WhiteTeam "Scotland"]
[BlackTeam "Russia"]
[WhiteTeamCountry "SCO"]
[BlackTeamCountry "RUS"]
[TimeControl "40/5400+30:1800+30"]

1. e4 {[%emt 0:00:00]} c5 {[%emt 0:00:22]} 2. c3 {[%emt 0:00:00]} d5 {[%emt 0:00:37]} 3. exd5 {[%emt 0:00:00]} Qxd5 {[%emt 0:00:03]} 4. d4 {[%emt 0:00:00]} Nf6 {[%emt 0:00:36]} 5. Nf3 {[%emt 0:00:03]} e6 {[%emt 0:00:49]} 6. Na3 {[%emt 0:01:28]} Qd8 {[%emt 0:03:20]} 7. Nc4 {[%emt 0:00:14]} Nc6 {[%emt 0:00:59]} 8. Be3 {[%emt 0:04:40] LiveBook: 9 Games B22: Sicilian: 2 c3} (8. Nce5 Nxe5 9. Nxe5 a6 10. Qa4+ Nd7 11. Be3 cxd4 12. Bxd4 f6 13. Nf3 Qc7 14. O-O-O Qc6 15. Qxc6 bxc6 16. Nd2 e5 17. Be3 {½-½ (82) Wang,H (2709)-Le,Q (2737) Riadh 2017}) 8... cxd4 {[%emt 0:04:54]} 9. Nxd4 {[%emt 0:02:38]} Nd5 {[%emt 0:05:17]} 10. Bd3 {[%emt 0:04:19]} Be7 {[%emt 0:05:34]} 11. O-O $146 {[%emt 0:09:18]} ({Predecessor:} 11. Qf3 Nxe3 12. fxe3 Bd7 13. O-O O-O 14. Rad1 g6 15. Qe2 Rc8 {½-½ (70) Bar Ziv,I (2191)-Primakov,V (2444) ICCF email 2014}) 11... O-O {[%emt 0:02:01]} 12. Qc2 {[%emt 0:11:37]} f5 {[%emt 0:03:23]} 13. Nxc6 {[%emt 0:03:56]} bxc6 {[%emt 0:00:05]} 14. Bd4 {[%emt 0:01:28]} c5 {[%emt 0:16:26]} 15. Be5 {[%emt 0:01:26]} a5 {[%emt 0:01:57]} 16. Rfe1 $16 {[%emt 0:04:55]} Bb7 {[%emt 0:02:41]} 17. a3 {[%emt 0:14:03]} Rf7 {[%emt 0:00:41]} 18. Rad1 {[%emt 0:03:25]} Qc8 {[%emt 0:04:06]} 19. Bf1 {[%emt 0:01:50]} 1/2-1/2

[Event "ESTCC U65 2018"]
[Site "Walbrzych"]
[Date "2018.04.17"]
[Round "4"]
[White "Christiansen, Arne"]
[Black "Lehtosaari, Kalevi"]
[Result "1/2-1/2"]
[ECO "D11"]
[WhiteElo "2045"]
[BlackElo "1964"]
[Annotator "NA"]
[PlyCount "48"]
[EventDate "2018.??.??"]
[EventCountry "POL"]
[SourceTitle "playchess.com"]
[Source "ChessBase"]
[SourceQuality "1"]
[WhiteTeam "Denmark"]
[BlackTeam "Finland"]
[WhiteTeamCountry "DEN"]
[BlackTeamCountry "FIN"]
[TimeControl "40/5400+30:1800+30"]

1. d4 {[%emt 0:00:00]} d5 {[%emt 0:00:09]} 2. c4 {[%emt 0:00:00]} c6 {[%emt 0:00:12]} 3. Nf3 {[%emt 0:00:00]} g6 {[%emt 0:00:39]} 4. Nc3 {[%emt 0:00:00]} Bg7 {[%emt 0:00:09]} 5. Bf4 {[%emt 0:00:23]} Nf6 {[%emt 0:00:42]} 6. e3 {[%emt 0:00:08]} O-O {[%emt 0:00:43]} 7. h3 {[%emt 0:00:30]} Nbd7 {[%emt 0:03:17]} 8. Rc1 {[%emt 0:02:41]} e6 {[%emt 0:04:37]} 9. Bd3 {[%emt 0:03:35]} dxc4 {[%emt 0:00:40]} 10. Bxc4 {[%emt 0:00:14]} Nd5 {[%emt 0:00:09]} 11. Bg3 {[%emt 0:06:09]} N7b6 {[%emt 0:04:38]} 12. Bb3 {[%emt 0:01:20]} a5 {[%emt 0:01:08]} 13. O-O {[%emt 0:02:43]} Qe7 {[%emt 0:00:59]} 14. Ne4 {[%emt 0:08:41]} Rd8 {[%emt 0:05:17]} 15. Nc5 {[%emt 0:02:09]} Nd7 {[%emt 0:03:08]} 16. Nxd7 {[%emt 0:12:17]} Bxd7 {[%emt 0:02:28]} 17. a3 {[%emt 0:00:23]} Rac8 {[%emt 0:03:34]} 18. Qd2 {[%emt 0:07:49]} b6 {[%emt 0:00:58]} 19. Ne5 {[%emt 0:05:11]} Be8 {[%emt 0:04:37]} 20. Rc2 {[%emt 0:02:25]} f6 {[%emt 0:25:18]} 21. Nf3 {[%emt 0:00:14]} Kh8 {[%emt 0:04:31]} 22. e4 {[%emt 0:04:32]} Nc7 {[%emt 0:00:41]} 23. Qe3 {[%emt 0:01:41]} Nb5 {[%emt 0:08:00]} 24. a4 {[%emt 0:04:15]} Ra8 1/2-1/2

[Event "ESTCC U65 2018"]
[Site "Walbrzych"]
[Date "2018.04.17"]
[Round "4"]
[White "Koskinen, Veikko"]
[Black "Kolbak, Jens"]
[Result "0-1"]
[ECO "C49"]
[WhiteElo "2012"]
[BlackElo "2213"]
[Annotator "NA"]
[PlyCount "110"]
[EventDate "2018.??.??"]
[EventCountry "POL"]
[SourceTitle "playchess.com"]
[Source "ChessBase"]
[SourceQuality "1"]
[WhiteTeam "Finland"]
[BlackTeam "Denmark"]
[WhiteTeamCountry "FIN"]
[BlackTeamCountry "DEN"]
[TimeControl "40/5400+30:1800+30"]

1. e4 {[%emt 0:00:00]} e5 {[%emt 0:00:15]} 2. Nf3 {[%emt 0:00:00]} Nc6 {[%emt 0:00:10]} 3. Nc3 {[%emt 0:00:21]} Nf6 {[%emt 0:00:32]} 4. Bb5 {[%emt 0:01:25]} Bb4 {[%emt 0:02:51]} 5. O-O {[%emt 0:02:54]} O-O {[%emt 0:02:01]} 6. Re1 {[%emt 0:01:00]} d6 {[%emt 0:01:23]} 7. h3 {[%emt 0:02:50]} Nd4 {[%emt 0:02:40] C49: Four Knights: 4 Bb5 Bb4} (7... Ne7 8. a3 Ba5 9. b4 Bb6 10. Na4 c6 11. Nxb6 axb6 12. Bf1 Ng6 13. Bb2 Re8 14. d4 Qc7 15. Qd2 {1-0 (69) Lioe,D (2356)-Lokesh,N (2181) Puchong 2017}) 8. Bf1 {[%emt 0:06:40]} c6 {[%emt 0:03:01]} 9. Nb1 $146 {[%emt 0:01:20]} ({Predecessor:} 9. a3 Ba5 10. b4 Bc7 11. d3 h6 12. Na4 b5 13. Nb2 Be6 14. c4 a5 15. Nxd4 exd4 16. cxb5 cxb5 {1-0 (57) Klyszcz,M (2037)-Schmitz,E Troisdorf 2000}) 9... Ba5 {[%emt 0:04:22]} 10. c3 {[%emt 0:03:17]} Ne6 {[%emt 0:06:39]} 11. d3 {[%emt 0:16:30]} b5 {[%emt 0:10:41]} 12. g3 {[%emt 0:19:30]} Re8 {[%emt 0:04:04]} 13. Bg2 {[%emt 0:00:28]} c5 {[%emt 0:02:48]} 14. Rf1 {[%emt 0:07:07]} Bb7 {[%emt 0:02:23]} 15. Nbd2 {[%emt 0:03:25]} Qc7 {[%emt 0:03:04]} 16. Qe2 {[%emt 0:01:58]} Bb6 {[%emt 0:05:21]} 17. b3 {[%emt 0:01:31]} a5 {[%emt 0:03:39]} 18. a4 {[%emt 0:02:40]} b4 {[%emt 0:08:58]} 19. c4 {[%emt 0:01:05]} g6 {[%emt 0:04:45]} 20. Qd1 {[%emt 0:10:14]} Qe7 {[%emt 0:00:56]} 21. Nh2 {[%emt 0:00:30]} Bd8 {[%emt 0:05:03]} 22. Ng4 {[%emt 0:01:32]} Nxg4 {[%emt 0:00:57]} 23. Qxg4 {[%emt 0:00:40]} Nd4 {[%emt 0:04:11]} 24. Qd1 {[%emt 0:01:30]} Ra7 {[%emt 0:04:00]} 25. Nf3 {[%emt 0:00:31]} Ne6 {[%emt 0:00:25]} 26. Nh2 {[%emt 0:00:09]} h5 {[%emt 0:01:56]} 27. Be3 {[%emt 0:04:14]} Qf8 {[%emt 0:02:59]} 28. Qd2 {[%emt 0:01:08]} Qg7 {[%emt 0:01:24]} 29. Rab1 {[%emt 0:01:59]} Bc8 {[%emt 0:05:28]} 30. Nf3 {[%emt 0:02:17]} g5 {[%emt 0:01:04]} 31. Ne1 {[%emt 0:02:16]} Bf6 {[%emt 0:01:10]} 32. Qd1 {[%emt 0:00:29]} g4 {[%emt 0:00:38]} 33. h4 {[%emt 0:00:29]} Nd4 {[%emt 0:01:08]} 34. Kh2 {[%emt 0:00:48]} Qg6 {[%emt 0:00:55]} 35. Bxd4 {[%emt 0:00:56]} exd4 {[%emt 0:00:47]} 36. f4 {[%emt 0:02:43]} gxf3 {[%emt 0:00:21]} 37. Bxf3 {[%emt 0:00:28]} Be5 {[%emt 0:01:09]} 38. Rg1 {[%emt 0:00:01]} Bg4 {[%emt 0:00:57]} 39. Qd2 {[%emt 0:01:24]} f6 {[%emt 0:00:40]} 40. Bh1 {[%emt 0:00:00]} Rg7 {[%emt 0:00:46]} 41. Qf2 {[%emt 0:03:12]} Kh8 {[%emt 0:08:23]} 42. Ng2 {[%emt 0:03:15]} Reg8 {[%emt 0:01:09]} 43. Nf4 {[%emt 0:00:48]} Qh6 {[%emt 0:00:17]} 44. Rbf1 {[%emt 0:07:40]} Bd7 {[%emt 0:04:33]} 45. Qf3 {[%emt 0:02:56]} Rg4 {[%emt 0:01:17]} 46. Qf2 {[%emt 0:01:51]} Bxf4 {[%emt 0:08:05]} 47. gxf4 {[%emt 0:00:46] [#]} Rxg1 {[%emt 0:00:20]} ({Black should try} 47... f5 $1 48. Rxg4 Rxg4) 48. Rxg1 {[%emt 0:00:10]} Rxg1 {[%emt 0:00:29]} 49. Kxg1 {[%emt 0:00:09]} Qg6+ {[%emt 0:00:09]} 50. Kf1 {[%emt 0:02:17]} Qg4 {[%emt 0:00:58]} 51. Ke1 {[%emt 0:00:20] [#]} (51. Bf3 $11 Qh3+ 52. Kg1) 51... Qh3 $1 {[%emt 0:00:59]} 52. Bf3 {[%emt 0:04:31]} Bg4 {[%emt 0:00:12]} 53. Ke2 {[%emt 0:00:44]} Bxf3+ {[%emt 0:01:45]} 54. Qxf3 {[%emt 0:00:09]} Qxh4 {[%emt 0:00:05]} 55. e5 $19 {[%emt 0:02:13]} dxe5 {[%emt 0:00:22]} 0-1

[Event "ESTCC U65 2018"]
[Site "Walbrzych"]
[Date "2018.04.17"]
[Round "4"]
[White "Carlsten, Peter"]
[Black "Staechelin, Ruedi"]
[Result "1-0"]
[ECO "B01"]
[WhiteElo "2010"]
[BlackElo "2091"]
[Annotator "NA"]
[PlyCount "57"]
[EventDate "2018.??.??"]
[EventCountry "POL"]
[SourceTitle "playchess.com"]
[Source "ChessBase"]
[SourceQuality "1"]
[WhiteTeam "Sweden"]
[BlackTeam "Switzerland"]
[WhiteTeamCountry "SWE"]
[BlackTeamCountry "SUI"]
[TimeControl "40/5400+30:1800+30"]

1. e4 {[%emt 0:00:00]} d5 {[%emt 0:00:19]} 2. exd5 {[%emt 0:00:00]} Qxd5 {[%emt 0:00:05]} 3. Nc3 {[%emt 0:00:00]} Qd6 {[%emt 0:00:09]} 4. d4 {[%emt 0:00:26]} Nf6 {[%emt 0:00:15]} 5. Nf3 {[%emt 0:00:18]} c6 {[%emt 0:00:50]} 6. g3 {[%emt 0:01:14] B01: Scandinavian Defence} (6. h3 Nbd7 7. Bd3 g6 8. O-O Bg7 9. Re1 O-O 10. Qe2 e6 11. Bg5 b6 12. Rad1 Bb7 13. Ne5 c5 14. dxc5 Qxe5 15. Qxe5 Nxe5 16. Rxe5 {1-0 (90) Guseinov,G (2645)-Carlsen,M (2832) chess.com INT 2017}) 6... Bf5 {[%emt 0:04:34]} 7. Bg2 {[%emt 0:01:39]} e6 {[%emt 0:00:28]} 8. O-O {[%emt 0:02:02] LiveBook: 52 Games} Be7 {[%emt 0:01:03]} 9. Bf4 {[%emt 0:05:13]} Qd8 {[%emt 0:00:09]} 10. h3 {[%emt 0:02:55]} h6 {[%emt 0:01:48]} 11. Ne5 {[%emt 0:09:44]} O-O {[%emt 0:03:35]} 12. Re1 {[%emt 0:02:32]} Nd5 $146 {[%emt 0:09:44]} ({Predecessor:} 12... Nbd7 13. Nc4 Nb6 {0-1 (47) Mannion,S (2347)-Tiviakov,S (2668) Douglas 2014}) 13. Nxd5 {[%emt 0:03:27]} exd5 {[%emt 0:01:16]} 14. Qd2 {[%emt 0:03:19]} Nd7 {[%emt 0:08:11]} 15. c4 {[%emt 0:06:51]} Nf6 {[%emt 0:25:26]} 16. g4 {[%emt 0:06:02]} Ne4 {[%emt 0:04:08]} 17. Qe3 {[%emt 0:02:35]} Bh7 {[%emt 0:01:26]} 18. f3 {[%emt 0:06:00]} Nd6 {[%emt 0:03:18]} 19. c5 {[%emt 0:01:51]} Nc8 {[%emt 0:00:12]} 20. Qb3 {[%emt 0:06:47]} f6 {[%emt 0:03:14]} 21. Qxb7 {[%emt 0:01:55]} fxe5 {[%emt 0:02:34]} 22. Bxe5 {[%emt 0:00:10]} Nb6 {[%emt 0:10:27]} 23. cxb6 $18 {[%emt 0:00:22]} axb6 {[%emt 0:00:33]} 24. Qxc6 {[%emt 0:02:23]} Bh4 {[%emt 0:00:38]} 25. Re2 {[%emt 0:01:50]} Bf6 {[%emt 0:02:51]} 26. f4 {[%emt 0:01:33]} Be4 {[%emt 0:01:26]} 27. Bxe4 {[%emt 0:00:15]} dxe4 {[%emt 0:00:03]} 28. Qxe4 {[%emt 0:00:16]} Rc8 {[%emt 0:01:04]} 29. d5 {[%emt 0:01:18]} 1-0